[Event "GER-ch Youth-U18w 2023"]
[Site "Willingen"]
[Date "2023.05.29"]
[Round "3.10"]
[White "Avetyan, Manan"]
[Black "Derling, Charlotte"]
[Result "0-1"]
[Annotator "NA COMBH"]
[ECO "B70"]
[WhiteElo "1368"]
[BlackElo "1664"]
[PlyCount "114"]
[EventDate "2022.06.05"]
[EventType "swiss"]
[EventRounds "9"]
[EventCountry "GER"]
[SourceTitle "playchess.com"]
[Source "ChessBase"]
[SourceQuality "1"]
[TimeControl "40/4500+30:900+30"]

1. e4 {[%emt 0:00:00]} c5 {[%emt 0:00:00]} 2. Nf3 {[%emt 0:00:00]} d6 {[%emt 0:00:00]} 3. d4 {[%emt 0:00:00]} cxd4 {[%emt 0:00:00]} 4. Nxd4 {[%emt 0:00:00]} Nf6 {[%emt 0:00:00]} 5. Nc3 {[%emt 0:00:00]} g6 {[%emt 0:00:00]} 6. Bg5 {[%emt 0:00:00]} Bg7 {[%emt 0:00:00]} 7. Bb5+ {[%emt 0:00:00]} Nbd7 {[%emt 0:00:00]} 8. Qe2 {[%emt 0:00:00]} a6 {[%emt 0:09:11]} 9. Bxd7+ {[%emt 0:00:00]} Nxd7 {[%emt 0:06:45]} 10. O-O-O {[%emt 0:00:00]} O-O {[%emt 0:10:17]} 11. f4 {[%emt 0:13:49]} Nc5 {[%emt 0:08:13]} 12. Nd5 {[%emt 0:14:38]} f6 {[%emt 0:09:22]} 13. Bh4 {[%emt 0:04:40]} Ne6 {[%emt 0:02:50]} 14. Nb3 {[%emt 0:03:03]} Nc7 {[%emt 0:06:50]} 15. Qc4 {[%emt 0:09:00]} Nxd5 {[%emt 0:01:36]} 16. Qxd5+ {[%emt 0:00:48]} Kh8 {[%emt 0:00:20]} 17. Rhe1 {[%emt 0:10:57]} Qc7 {[%emt 0:02:42]} 18. Bg3 {[%emt 0:05:55]} Bd7 {[%emt 0:01:30]} 19. Nd4 {[%emt 0:06:09]} Rac8 {[%emt 0:01:50]} 20. Rd2 {[%emt 0:02:13]} b5 {[%emt 0:04:55]} 21. Kb1 {[%emt 0:04:32]} Qc4 {[%emt 0:02:57]} 22. Qxc4 {[%emt 0:01:10]} Rxc4 {[%emt 0:00:34]} 23. e5 {[%emt 0:01:56]} dxe5 {[%emt 0:02:32]} 24. fxe5 {[%emt 0:00:03]} fxe5 {[%emt 0:02:21]} 25. Nf3 {[%emt 0:01:18]} Bf5 {[%emt 0:02:32]} 26. Bxe5 {[%emt 0:02:04]} Bxe5 {[%emt 0:02:16]} 27. Rxe5 {[%emt 0:00:03]} Re4 {[%emt 0:00:41]} 28. Rdd5 {[%emt 0:03:04]} Kg7 {[%emt 0:03:12]} 29. Rc5 {[%emt 0:02:28]} Rd8 {[%emt 0:00:57]} 30. Kc1 {[%emt 0:00:07]} Rxe5 {[%emt 0:02:10]} 31. Rxe5 {[%emt 0:00:19]} Kf6 {[%emt 0:00:16]} 32. Re3 {[%emt 0:00:36]} Rc8 {[%emt 0:00:50]} 33. Nd4 {[%emt 0:00:45]} Rc4 {[%emt 0:00:23]} 34. Nxf5 {[%emt 0:00:39]} gxf5 {[%emt 0:00:19]} 35. g3 {[%emt 0:00:49]} Rd4 {[%emt 0:00:58]} 36. c3 {[%emt 0:01:22]} Rd6 {[%emt 0:00:43]} 37. Kc2 {[%emt 0:00:13]} e5 {[%emt 0:00:14]} 38. b3 {[%emt 0:00:57]} f4 {[%emt 0:02:02]} 39. Rf3 {[%emt 0:00:46]} Kf5 {[%emt 0:00:39]} 40. gxf4 {[%emt 0:00:32]} exf4 {[%emt 0:00:34]} 41. c4 {[%emt 0:00:00]} bxc4 {[%emt 0:00:00]} 42. bxc4 {[%emt 0:00:00]} Ke4 {[%emt 0:00:00]} 43. c5 {[%emt 0:03:56]} Rc6 {[%emt 0:03:03]} 44. Rc3 {[%emt 0:00:31]} Kd4 {[%emt 0:01:50]} 45. Rd3+ {[%emt 0:10:57]} Kxc5 {[%emt 0:01:24]} 46. Rc3+ {[%emt 0:00:36]} Kd5 {[%emt 0:00:25]} 47. Rxc6 {[%emt 0:00:33]} Kxc6 {[%emt 0:00:21]} 48. Kd3 {[%emt 0:00:22]} Kd5 {[%emt 0:04:54]} 49. Ke2 {[%emt 0:00:12]} Ke4 {[%emt 0:01:00]} 50. Kf2 {[%emt 0:00:11]} h5 {[%emt 0:01:13]} 51. a3 {[%emt 0:01:48]} f3 {[%emt 0:01:06]} 52. Kf1 {[%emt 0:00:02]} Kf4 {[%emt 0:03:14]} 53. a4 {[%emt 0:01:48]} Ke3 {[%emt 0:01:21]} 54. Ke1 {[%emt 0:01:05]} a5 {[%emt 0:00:28]} 55. h4 {[%emt 0:00:31]} Kf4 {[%emt 0:00:11]} 56. Kf1 {[%emt 0:00:29]} Kg3 {[%emt 0:00:17]} 57. Kg1 {[%emt 0:00:06]} Kxh4 {[%emt 0:00:07]} 0-1

[Event "GER-ch Youth-U18w 2023"]
[Site "Willingen"]
[Date "2023.05.29"]
[Round "3.11"]
[White "Gossing, Marie-Sophie"]
[Black "Henninger, Claire"]
[Result "0-1"]
[Annotator "NA RC"]
[ECO "B13"]
[WhiteElo "1395"]
[BlackElo "1610"]
[PlyCount "66"]
[EventDate "2022.06.05"]
[EventType "swiss"]
[EventRounds "9"]
[EventCountry "GER"]
[SourceTitle "playchess.com"]
[Source "ChessBase"]
[SourceQuality "1"]
[TimeControl "40/4500+30:900+30"]

1. e4 {[%emt 0:00:00]} c6 {[%emt 0:00:00]} 2. d4 {[%emt 0:00:00]} d5 {[%emt 0:00:00]} 3. exd5 {[%emt 0:00:00]} cxd5 {[%emt 0:00:00]} 4. Bd3 {[%emt 0:00:00]} Nc6 {[%emt 0:00:00]} 5. c3 {[%emt 0:00:00]} Qc7 {[%emt 0:00:00]} 6. h3 {[%emt 0:00:00]} Nf6 {[%emt 0:00:00]} 7. Bg5 {[%emt 0:00:00]} e6 {[%emt 0:00:00]} 8. Qc2 {[%emt 0:00:00]} Be7 {[%emt 0:00:29]} 9. Ne2 {[%emt 0:00:05]} h6 {[%emt 0:01:33]} 10. Bh4 {[%emt 0:02:37]} Bd7 {[%emt 0:03:12]} 11. Nd2 {[%emt 0:02:39]} a6 {[%emt 0:01:49]} 12. a4 {[%emt 0:00:47]} e5 {[%emt 0:08:44]} 13. Bg3 {[%emt 0:09:07]} Bd6 {[%emt 0:00:43]} 14. dxe5 {[%emt 0:05:32]} Bxe5 {[%emt 0:02:08]} 15. Bxe5 {[%emt 0:00:44]} Nxe5 {[%emt 0:00:26]} 16. O-O {[%emt 0:01:09]} Nxd3 {[%emt 0:02:24]} 17. Qxd3 {[%emt 0:00:19]} O-O {[%emt 0:00:20]} 18. Nd4 {[%emt 0:01:17]} Rfe8 {[%emt 0:01:24]} 19. Rfc1 {[%emt 0:16:27]} Qd6 {[%emt 0:14:01]} 20. b4 {[%emt 0:04:41]} Ne4 {[%emt 0:04:16]} 21. Nf1 {[%emt 0:04:35]} Qf6 {[%emt 0:06:08]} 22. Nf3 {[%emt 0:06:11]} Rad8 {[%emt 0:08:57]} 23. Qxd5 {[%emt 0:06:22]} Nxc3 {[%emt 0:02:53]} 24. Qxb7 {[%emt 0:04:47]} Ne2+ {[%emt 0:01:06]} 25. Kh1 {[%emt 0:00:14]} Nxc1 {[%emt 0:00:47]} 26. Rxc1 {[%emt 0:00:25]} Bxa4 {[%emt 0:01:11]} 27. Rc7 {[%emt 0:03:09]} Rd1 {[%emt 0:02:40]} 28. Kg1 {[%emt 0:08:23]} Rxf1+ {[%emt 0:00:41]} 29. Kh2 {[%emt 0:01:16]} Qf4+ {[%emt 0:02:20]} 30. g3 {[%emt 0:00:19]} Rxf2+ {[%emt 0:00:18]} 31. Kg1 {[%emt 0:02:03]} Qxg3+ {[%emt 0:00:11]} 32. Kh1 {[%emt 0:00:29]} Rf1+ {[%emt 0:00:07]} 33. Ng1 {[%emt 0:00:15]} Qxg1# {[%emt 0:00:07]} 0-1

[Event "GER-ch Youth-U18w 2023"]
[Site "Willingen"]
[Date "2023.05.29"]
[Round "3.12"]
[White "Kieckbusch, Lotta"]
[Black "Evering, Enna"]
[Result "1-0"]
[Annotator "NA COMBH"]
[ECO "C56"]
[WhiteElo "1308"]
[BlackElo "1548"]
[PlyCount "115"]
[EventDate "2022.06.05"]
[EventType "swiss"]
[EventRounds "9"]
[EventCountry "GER"]
[SourceTitle "playchess.com"]
[Source "ChessBase"]
[SourceQuality "1"]
[TimeControl "40/4500+30:900+30"]

1. e4 {[%emt 0:00:00]} e5 {[%emt 0:00:00]} 2. Nf3 {[%emt 0:00:00]} Nc6 {[%emt 0:00:00]} 3. d4 {[%emt 0:00:00]} exd4 {[%emt 0:00:00]} 4. Bc4 {[%emt 0:00:00]} Nf6 {[%emt 0:00:00]} 5. e5 {[%emt 0:00:00]} d5 {[%emt 0:00:00]} 6. Bb5 {[%emt 0:00:00]} Ne4 {[%emt 0:00:00]} 7. Nxd4 {[%emt 0:00:00]} Bd7 {[%emt 0:00:00]} 8. Bxc6 {[%emt 0:00:00]} bxc6 {[%emt 0:00:00]} 9. O-O {[%emt 0:00:00]} Bc5 {[%emt 0:00:00]} 10. f3 {[%emt 0:00:00]} Ng5 {[%emt 0:00:00]} 11. f4 {[%emt 0:00:00]} Ne4 {[%emt 0:02:02]} 12. Be3 {[%emt 0:00:00]} Bb6 {[%emt 0:10:21]} 13. Nd2 {[%emt 0:03:10]} Nxd2 {[%emt 0:06:36]} 14. Qxd2 {[%emt 0:00:21]} Qe7 {[%emt 0:09:16]} 15. Rae1 {[%emt 0:06:37]} c5 {[%emt 0:06:03]} 16. Ne2 {[%emt 0:07:29]} d4 {[%emt 0:05:25]} 17. Bf2 {[%emt 0:00:31]} O-O-O {[%emt 0:03:39]} 18. Qd3 {[%emt 0:05:07]} Bc6 {[%emt 0:05:28]} 19. c3 {[%emt 0:16:28]} Qd7 {[%emt 0:07:26]} 20. cxd4 {[%emt 0:05:19]} cxd4 {[%emt 0:03:30]} 21. Rd1 {[%emt 0:04:46]} Bb5 {[%emt 0:03:45]} 22. Qe4 {[%emt 0:02:22]} Bc6 {[%emt 0:00:42]} 23. Qd3 {[%emt 0:01:27]} Bb5 {[%emt 0:03:18]} 24. Qe4 {[%emt 0:00:23]} Qd5 {[%emt 0:00:48]} 25. Qf5+ {[%emt 0:07:54]} Qe6 {[%emt 0:02:49]} 26. Qe4 {[%emt 0:11:12]} Qd5 {[%emt 0:00:32]} 27. Qf5+ {[%emt 0:00:43]} Qe6 {[%emt 0:00:03]} 28. Qe4 {[%emt 0:00:16]} Bxe2 {[%emt 0:04:12]} 29. Qxe2 {[%emt 0:02:27]} Qxa2 {[%emt 0:02:00]} 30. Ra1 {[%emt 0:05:13]} Qd5 {[%emt 0:00:25]} 31. Qa6+ {[%emt 0:01:26]} Qb7 {[%emt 0:00:22]} 32. Qc4 {[%emt 0:00:32]} c5 {[%emt 0:00:56]} 33. b4 {[%emt 0:01:10]} Qd5 {[%emt 0:03:10]} 34. Qxd5 {[%emt 0:01:28]} Rxd5 {[%emt 0:00:04]} 35. bxc5 {[%emt 0:00:10]} Bxc5 {[%emt 0:00:58]} 36. Rfc1 {[%emt 0:00:10]} Kb8 {[%emt 0:01:08]} 37. Ra5 {[%emt 0:01:15]} Rc8 {[%emt 0:01:19]} 38. Rb5+ {[%emt 0:01:23]} Ka8 {[%emt 0:00:57]} 39. Kf1 {[%emt 0:00:34]} a6 {[%emt 0:03:27]} 40. Ra5 {[%emt 0:01:10]} Ka7 {[%emt 0:02:16]} 41. Raxc5 {[%emt 0:17:16]} Rcxc5 {[%emt 0:15:57]} 42. Rxc5 {[%emt 0:00:11]} Rxc5 {[%emt 0:00:06]} 43. Bxd4 {[%emt 0:00:09]} Kb6 {[%emt 0:00:08]} 44. Ke2 {[%emt 0:00:00]} Kc6 {[%emt 0:00:00]} 45. Bxc5 {[%emt 0:00:00]} Kxc5 {[%emt 0:00:00]} 46. Kd2 {[%emt 0:00:00]} Kd5 {[%emt 0:00:00]} 47. Kd3 {[%emt 0:00:00]} f6 {[%emt 0:00:00]} 48. exf6 {[%emt 0:00:00]} gxf6 {[%emt 0:00:00]} 49. g4 {[%emt 0:00:00]} a5 {[%emt 0:00:00]} 50. h4 {[%emt 0:00:00]} a4 {[%emt 0:00:00]} 51. g5 {[%emt 0:00:00]} Ke6 {[%emt 0:00:00]} 52. h5 {[%emt 0:02:29]} Kf5 {[%emt 0:00:00]} 53. g6 {[%emt 0:00:49]} hxg6 {[%emt 0:00:00]} 54. h6 {[%emt 0:00:11]} Kxf4 {[%emt 0:00:00]} 55. h7 {[%emt 0:00:15]} g5 {[%emt 0:00:00]} 56. h8=Q {[%emt 0:00:10]} f5 {[%emt 0:00:00]} 57. Qd4+ {[%emt 0:00:51]} Kf3 {[%emt 0:00:00]} 58. Qe3+ {[%emt 0:02:56]} 1-0

[Event "GER-ch Youth-U18w 2023"]
[Site "Willingen"]
[Date "2023.05.30"]
[Round "4.1"]
[White "Heutling, Elina"]
[Black "Groeschel, Karoline"]
[Result "1/2-1/2"]
[Annotator "NA RC"]
[ECO "B43"]
[WhiteElo "1878"]
[BlackElo "1892"]
[PlyCount "95"]
[EventDate "2022.06.05"]
[EventType "swiss"]
[EventRounds "9"]
[EventCountry "GER"]
[SourceTitle "playchess.com"]
[Source "ChessBase"]
[SourceQuality "1"]
[TimeControl "40/4500+30:900+30"]

1. e4 {[%emt 0:00:00]} c5 {[%emt 0:00:00]} 2. Nf3 {[%emt 0:00:00]} e6 {[%emt 0:00:00]} 3. d4 {[%emt 0:00:00]} cxd4 {[%emt 0:00:00]} 4. Nxd4 {[%emt 0:00:00]} a6 {[%emt 0:00:00]} 5. Nc3 {[%emt 0:00:00]} b5 {[%emt 0:00:00]} 6. Bd3 {[%emt 0:00:00]} Bb7 {[%emt 0:00:00]} 7. O-O {[%emt 0:00:00]} Nc6 {[%emt 0:00:00]} 8. Nxc6 {[%emt 0:00:00]} Bxc6 {[%emt 0:00:00]} 9. Qe2 {[%emt 0:00:00]} Bc5 {[%emt 0:00:00]} 10. Be3 {[%emt 0:00:00]} Qb6 {[%emt 0:00:00]} 11. Bxc5 {[%emt 0:09:18]} Qxc5 {[%emt 0:00:00]} 12. Rfe1 {[%emt 0:17:31]} Ne7 {[%emt 0:02:04]} 13. a4 {[%emt 0:16:05]} b4 {[%emt 0:04:21]} 14. Nb1 {[%emt 0:00:31]} Bb7 {[%emt 0:30:31]} (14... a5 $11) 15. Nd2 {[%emt 0:04:26]} (15. a5 $14) 15... O-O {[%emt 0:08:22]} 16. Qe3 {[%emt 0:11:42]} Qxe3 {[%emt 0:04:56]} 17. Rxe3 {[%emt 0:00:02]} d5 {[%emt 0:00:09]} 18. e5 {[%emt 0:01:30]} Nc6 {[%emt 0:08:28]} 19. Rae1 {[%emt 0:02:53]} Rfc8 {[%emt 0:02:02]} 20. Nb3 {[%emt 0:01:03]} a5 {[%emt 0:03:16]} 21. Bb5 {[%emt 0:05:13]} Ne7 {[%emt 0:03:57]} 22. Nd4 {[%emt 0:01:11]} Bc6 {[%emt 0:00:47]} 23. Nxc6 {[%emt 0:10:26]} Nxc6 {[%emt 0:00:07]} 24. Rd1 {[%emt 0:02:48]} Na7 {[%emt 0:03:38]} 25. Bd3 {[%emt 0:00:17]} g6 {[%emt 0:00:34]} 26. h4 {[%emt 0:00:28]} Rc5 {[%emt 0:01:32]} 27. h5 {[%emt 0:01:19]} Kg7 {[%emt 0:03:27]} 28. Rh3 {[%emt 0:01:53]} Nc6 {[%emt 0:00:46]} 29. f4 {[%emt 0:00:29]} Nd4 {[%emt 0:03:02]} 30. Kf2 {[%emt 0:00:29]} Nf5 {[%emt 0:06:23]} 31. g4 {[%emt 0:00:12]} Ne7 {[%emt 0:00:42]} 32. Rdh1 {[%emt 0:00:23]} Rac8 {[%emt 0:01:38]} 33. hxg6 {[%emt 0:00:45]} hxg6 {[%emt 0:00:05]} 34. Ke3 {[%emt 0:00:52]} Rg8 {[%emt 0:01:02]} 35. Rh7+ {[%emt 0:00:25]} Kf8 {[%emt 0:00:08]} 36. Rh8 {[%emt 0:00:24]} Rxh8 {[%emt 0:00:57]} 37. Rxh8+ {[%emt 0:00:01]} Ng8 {[%emt 0:00:17]} 38. Kd4 {[%emt 0:00:41]} (38. f5 $18) 38... Rc7 {[%emt 0:00:28]} 39. c3 {[%emt 0:01:06]} bxc3 {[%emt 0:00:28]} 40. bxc3 {[%emt 0:00:02]} Kg7 {[%emt 0:00:16]} 41. Rh1 {[%emt 0:15:46]} Ne7 {[%emt 0:00:00]} 42. Rb1 {[%emt 0:00:00]} Nc6+ {[%emt 0:00:00]} 43. Ke3 {[%emt 0:00:00]} (43. Kc5 $1 $11 {keeps the balance.} Nb4+ 44. Kb6 (44. Kd4 Nxd3 45. Kxd3 Rc4 $17) 44... Rc6+ 45. Kb7 Rxc3 46. Bb5) 43... d4+ {[%emt 0:00:00]} 44. cxd4 {[%emt 0:00:00]} Nb4 {[%emt 0:00:00]} 45. Kd2 $11 {[%emt 0:00:00]} Rd7 {[%emt 0:01:13]} 46. Ke3 {[%emt 0:00:00]} Rc7 {[%emt 0:00:19]} 47. Kd2 {[%emt 0:00:00]} Rd7 {[%emt 0:00:04]} 48. Ke3 {[%emt 0:00:09]} 1/2-1/2

[Event "GER-ch Youth-U18w 2023"]
[Site "Willingen"]
[Date "2023.05.30"]
[Round "4.4"]
[White "Glowiak, Alexandra"]
[Black "Buchholz, Maja Patricia"]
[Result "0-1"]
[Annotator "NA RC"]
[ECO "C03"]
[WhiteElo "1660"]
[BlackElo "1899"]
[PlyCount "49"]
[EventDate "2022.06.05"]
[EventType "swiss"]
[EventRounds "9"]
[EventCountry "GER"]
[SourceTitle "playchess.com"]
[Source "ChessBase"]
[SourceQuality "1"]
[TimeControl "40/4500+30:900+30"]

1. e4 {[%emt 0:00:00]} e6 {[%emt 0:00:00]} 2. d4 {[%emt 0:00:00]} d5 {[%emt 0:00:00]} 3. Nd2 {[%emt 0:00:00]} Be7 {[%emt 0:00:00]} 4. e5 {[%emt 0:00:00]} c5 {[%emt 0:00:00]} 5. c3 {[%emt 0:00:00]} cxd4 {[%emt 0:00:00]} 6. cxd4 {[%emt 0:00:00]} Qb6 {[%emt 0:00:00]} 7. Nb3 {[%emt 0:00:00]} a5 {[%emt 0:00:02]} 8. Nf3 {[%emt 0:20:41]} a4 {[%emt 0:14:42]} (8... Nc6 {deserves consideration.}) 9. Nbd2 {[%emt 0:01:42]} Nc6 {[%emt 0:15:00]} 10. Nb1 {[%emt 0:02:29]} Nh6 {[%emt 0:10:02]} 11. Qd3 {[%emt 0:13:57]} Bd7 {[%emt 0:04:39]} 12. Nc3 {[%emt 0:20:18]} Nf5 {[%emt 0:01:50]} 13. Ne2 {[%emt 0:02:03]} h5 {[%emt 0:05:34]} 14. g3 {[%emt 0:02:59]} Rc8 {[%emt 0:01:56]} 15. a3 {[%emt 0:01:48]} Na5 {[%emt 0:00:45]} 16. Rb1 {[%emt 0:01:04]} Bb5 {[%emt 0:01:21]} 17. Qd1 {[%emt 0:00:17]} O-O $17 {[%emt 0:06:21]} 18. Nc3 {[%emt 0:03:50]} Bxf1 {[%emt 0:00:53]} 19. Rxf1 {[%emt 0:00:08]} Rxc3 {[%emt 0:00:08]} 20. Bd2 {[%emt 0:01:33]} Rb3 {[%emt 0:01:09]} 21. Bc3 {[%emt 0:00:30]} Nc4 {[%emt 0:00:40]} 22. Qc1 {[%emt 0:01:53]} Bxa3 {[%emt 0:01:04]} 23. Nd2 {[%emt 0:00:34]} Nxd2 {[%emt 0:00:45]} 24. Qxd2 {[%emt 0:00:20]} Rc8 {[%emt 0:00:43]} 25. Ke2 {[%emt 0:01:57]} 0-1

[Event "GER-ch Youth-U18w 2023"]
[Site "Willingen"]
[Date "2023.05.30"]
[Round "4.5"]
[White "Wagner, Margarethe"]
[Black "Cordes, Jule"]
[Result "1-0"]
[Annotator "NA RC"]
[ECO "C02"]
[WhiteElo "1831"]
[BlackElo "1744"]
[PlyCount "136"]
[EventDate "2022.06.05"]
[EventType "swiss"]
[EventRounds "9"]
[EventCountry "GER"]
[SourceTitle "playchess.com"]
[Source "ChessBase"]
[SourceQuality "1"]
[TimeControl "40/4500+30:900+30"]

1. e4 {[%emt 0:00:00]} e6 {[%emt 0:00:00]} 2. d4 {[%emt 0:00:00]} d5 {[%emt 0:00:00]} 3. e5 {[%emt 0:00:00]} c5 {[%emt 0:00:00]} 4. c3 {[%emt 0:00:00]} Nc6 {[%emt 0:00:00]} 5. Nf3 {[%emt 0:00:00]} Qb6 {[%emt 0:00:00]} 6. a3 {[%emt 0:00:00]} c4 {[%emt 0:00:00]} 7. Nbd2 {[%emt 0:00:00]} Na5 {[%emt 0:00:00]} 8. Rb1 {[%emt 0:00:00]} Bd7 {[%emt 0:00:00]} 9. Be2 {[%emt 0:00:00]} Ne7 {[%emt 0:00:00] 9...Qc7 injects fresh life into this line.} 10. h4 {[%emt 0:00:00]} f6 {[%emt 0:00:00]} 11. h5 {[%emt 0:00:00] [#]} Qc7 $146 {[%emt 0:02:14]} ({Predecessor:} 11... h6 12. Nf1 Nb3 13. Bf4 O-O-O 14. Ne3 Ba4 15. Kf1 Nc6 16. Qe1 Be7 17. Kg1 Rdf8 {1-0 Balakrishnan,P (2524)-Borsuk,K (2425) Titled Tuesday intern op 07th Sept blitz 2021 (7)}) 12. Kf1 {[%emt 0:11:00]} O-O-O {[%emt 0:09:02]} 13. Qe1 {[%emt 0:07:26]} (13. g3 $11) 13... Kb8 {[%emt 0:22:37]} 14. b4 {[%emt 0:06:02]} cxb3 {[%emt 0:00:56]} 15. Nxb3 {[%emt 0:00:11]} Nxb3 {[%emt 0:04:35]} 16. Rxb3 {[%emt 0:00:06]} Nc8 {[%emt 0:00:32]} 17. g3 {[%emt 0:06:16]} Ba4 {[%emt 0:06:24]} 18. Rb1 {[%emt 0:01:30]} Qc6 {[%emt 0:07:23]} 19. h6 {[%emt 0:11:12]} Nb6 {[%emt 0:04:40]} 20. hxg7 {[%emt 0:06:56]} Bxg7 {[%emt 0:00:16]} 21. exf6 {[%emt 0:08:20]} Bxf6 {[%emt 0:00:17]} 22. Bf4+ {[%emt 0:00:09]} Ka8 {[%emt 0:01:34]} 23. Be5 {[%emt 0:01:20]} Bxe5 {[%emt 0:11:38]} 24. Nxe5 {[%emt 0:00:11]} Qc7 {[%emt 0:00:09]} 25. Rh6 {[%emt 0:02:33]} Rc8 {[%emt 0:03:53]} 26. Rc1 {[%emt 0:07:03]} Qe7 {[%emt 0:01:11]} 27. Bg4 {[%emt 0:06:23]} Qxa3 {[%emt 0:02:47]} 28. Rxe6 {[%emt 0:01:27]} Bb5+ {[%emt 0:01:19]} 29. Kg1 {[%emt 0:02:57]} Na4 {[%emt 0:01:11]} 30. Rh6 {[%emt 0:03:47]} Rc7 {[%emt 0:05:50]} 31. Bf3 {[%emt 0:02:41]} Nxc3 {[%emt 0:00:46]} 32. Ra1 {[%emt 0:02:10]} Qb2 {[%emt 0:00:27]} 33. Rh4 {[%emt 0:00:28]} Rhc8 {[%emt 0:00:41]} 34. Kg2 {[%emt 0:00:30]} Kb8 {[%emt 0:01:27]} 35. Bg4 {[%emt 0:00:41]} Re8 {[%emt 0:00:17]} 36. Bh5 {[%emt 0:00:33]} Rf8 {[%emt 0:00:39]} 37. Bf3 {[%emt 0:00:20]} Ba6 {[%emt 0:00:37]} 38. Rc1 {[%emt 0:00:56]} Rfc8 {[%emt 0:00:29]} 39. Bg4 {[%emt 0:00:30]} Rd8 {[%emt 0:00:27]} 40. Nd7+ {[%emt 0:00:43]} Ka8 {[%emt 0:00:02]} 41. Nc5 {[%emt 0:15:05]} Ne4 {[%emt 0:00:00]} 42. Rb1 {[%emt 0:00:00]} Qc2 {[%emt 0:00:00]} (42... Qxd4 $2 43. Ne6 Qe5 44. Rh5 $18 (44. Nxd8 Rc2 $15) (44. Nxc7+ Qxc7 45. Bf5 h5 $16)) (42... Qa2 $11 {remains equal.}) 43. Ne6 {[%emt 0:00:00]} Rf7 {[%emt 0:00:00]} 44. Nf4 {[%emt 0:00:00]} Rdf8 {[%emt 0:04:35]} 45. Rc1 {[%emt 0:00:00]} Qb2 {[%emt 0:01:11]} 46. Be6 {[%emt 0:00:00]} Rg7 {[%emt 0:01:33]} 47. Rg4 {[%emt 0:00:00]} Rxg4 {[%emt 0:02:41]} 48. Bxg4 {[%emt 0:00:00]} Bc4 {[%emt 0:01:55]} 49. Rxc4 {[%emt 0:00:00]} Nxf2 {[%emt 0:07:12]} (49... Qxf2+ $142 50. Qxf2 Nxf2) 50. Rb4 {[%emt 0:00:52]} Qc2 {[%emt 0:01:27]} 51. Qxf2 {[%emt 0:01:00]} Qc7 {[%emt 0:00:30]} 52. Qf3 {[%emt 0:01:56]} Qc2+ {[%emt 0:00:26]} 53. Qf2 {[%emt 0:01:36]} Qc7 {[%emt 0:00:30]} 54. Rb5 {[%emt 0:00:54]} Qg7 {[%emt 0:00:23]} 55. Be6 {[%emt 0:00:43]} h5 {[%emt 0:00:32]} 56. Bxd5 {[%emt 0:00:13]} Rb8 {[%emt 0:00:28]} 57. Bf3 {[%emt 0:00:39]} h4 {[%emt 0:00:30]} 58. Nh5 {[%emt 0:00:40]} h3+ {[%emt 0:00:27]} 59. Kh2 {[%emt 0:00:09]} Qd7 {[%emt 0:00:43]} 60. Rb2 {[%emt 0:00:14]} a6 {[%emt 0:00:14]} 61. Nf4 {[%emt 0:00:40]} Ka7 {[%emt 0:00:37]} 62. d5+ {[%emt 0:00:14]} b6 {[%emt 0:00:10]} 63. Ne6 {[%emt 0:00:19]} Qd6 {[%emt 0:00:49]} 64. Rc2 {[%emt 0:00:11]} Rb7 {[%emt 0:00:40]} 65. Rc6 {[%emt 0:00:15]} Qe5 {[%emt 0:00:31]} 66. Nf4 {[%emt 0:00:36]} Qg7 {[%emt 0:00:34]} 67. d6 {[%emt 0:00:21]} Qd7 {[%emt 0:00:23]} 68. Qc2 {[%emt 0:00:30]} Qd8 {[%emt 0:00:51]} 1-0

[Event "GER-ch Youth-U18w 2023"]
[Site "Willingen"]
[Date "2023.05.30"]
[Round "4.6"]
[White "Hafermann, Lara"]
[Black "Kalina, Lena"]
[Result "1/2-1/2"]
[Annotator "NA RC"]
[ECO "B35"]
[WhiteElo "1498"]
[BlackElo "1776"]
[PlyCount "68"]
[EventDate "2022.06.05"]
[EventType "swiss"]
[EventRounds "9"]
[EventCountry "GER"]
[SourceTitle "playchess.com"]
[Source "ChessBase"]
[SourceQuality "1"]
[TimeControl "40/4500+30:900+30"]

1. e4 {[%emt 0:00:00]} c5 {[%emt 0:00:00]} 2. Nf3 {[%emt 0:00:00]} Nc6 {[%emt 0:00:00]} 3. d4 {[%emt 0:00:00]} cxd4 {[%emt 0:00:00]} 4. Nxd4 {[%emt 0:00:00]} g6 {[%emt 0:00:00]} 5. Nc3 {[%emt 0:00:00]} Bg7 {[%emt 0:00:00]} 6. Be3 {[%emt 0:00:00]} Nf6 {[%emt 0:00:00]} 7. Bc4 {[%emt 0:00:00]} O-O {[%emt 0:00:00]} 8. Bb3 {[%emt 0:00:00]} Qa5 {[%emt 0:00:00]} 9. O-O {[%emt 0:00:00]} d6 {[%emt 0:00:00]} 10. h3 {[%emt 0:00:00]} Bd7 {[%emt 0:00:00]} 11. Re1 {[%emt 0:00:00]} Nxd4 {[%emt 0:04:38]} 12. Bxd4 {[%emt 0:00:00]} Rac8 {[%emt 0:12:05]} 13. Nd5 {[%emt 0:00:00]} Nxd5 {[%emt 0:02:28]} 14. Bxg7 {[%emt 0:00:00]} Kxg7 {[%emt 0:01:03]} 15. exd5 {[%emt 0:00:00]} Rfe8 {[%emt 0:02:23]} 16. Qf3 {[%emt 0:01:06]} Qc7 {[%emt 0:08:13]} 17. Re3 {[%emt 0:04:26]} e5 {[%emt 0:05:24]} 18. dxe6 {[%emt 0:04:04]} fxe6 {[%emt 0:01:13]} 19. Rae1 {[%emt 0:03:28]} Rf8 {[%emt 0:03:10]} 20. Qd1 {[%emt 0:06:26]} e5 {[%emt 0:06:03]} 21. Rd3 {[%emt 0:05:34]} Rcd8 {[%emt 0:03:34]} 22. Rxd6 {[%emt 0:02:02]} Bxh3 {[%emt 0:04:57]} 23. Rxd8 {[%emt 0:00:35]} Rxd8 {[%emt 0:00:08]} 24. Qe2 {[%emt 0:01:11]} Bf5 {[%emt 0:03:19]} 25. Qxe5+ {[%emt 0:00:18]} Qxe5 {[%emt 0:00:06]} 26. Rxe5 {[%emt 0:00:11]} Rd1+ {[%emt 0:02:57]} 27. Kh2 {[%emt 0:00:16]} Kf6 {[%emt 0:01:21]} 28. Rc5 {[%emt 0:10:00]} Rd7 {[%emt 0:05:00]} 29. f3 {[%emt 0:03:29]} h5 {[%emt 0:01:58]} 30. Rd5 {[%emt 0:04:50]} Re7 {[%emt 0:02:44]} 31. Kg1 {[%emt 0:05:49]} Re1+ {[%emt 0:02:30]} 32. Kf2 {[%emt 0:00:15]} Rb1 {[%emt 0:00:26]} 33. Rd2 {[%emt 0:06:32]} Rxb2 {[%emt 0:01:56]} 34. Ke3 {[%emt 0:00:53]} Ke5 {[%emt 0:00:02]} 1/2-1/2